[Event "Titled Tuesday Blitz June 27 Early 2023"]
[White "Gyulamiryan-koryun"]
[Black "LangesNasenhaar"]
[WhiteElo "2092"]
[BlackElo "2460"]
[Result "0-1"]
[Round "10"]
[TimeControl "180+2"]
[Date "2023.06.27"]
[WhiteClock "0:00:05"]
[BlackClock "0:00:07"]
[Board "97"]

1. e4 {[%clk 0:03:00]}  g6 {[%clk 0:02:59]} 2. d4 {[%clk 0:03:00]}  Bg7 {[%clk 0:03:00]} 3. c4 {[%clk 0:02:59]}  d6 {[%clk 0:02:59]} 4. Nc3 {[%clk 0:02:59]}  a6 {[%clk 0:02:59]} 5. Nf3 {[%clk 0:02:59]}  c6 {[%clk 0:02:58]} 6. a4 {[%clk 0:02:56]}  a5 {[%clk 0:02:57]} 7. Be3 {[%clk 0:02:55]}  Na6 {[%clk 0:02:57]} 8. Be2 {[%clk 0:02:52]}  e5 {[%clk 0:02:57]} 9. dxe5 {[%clk 0:02:51]}  dxe5 {[%clk 0:02:57]} 10. Qxd8+ {[%clk 0:02:52]}  Kxd8 {[%clk 0:02:56]} 11. Bb6+ {[%clk 0:02:45]}  Ke8 {[%clk 0:02:50]} 12. O-O-O {[%clk 0:02:43]}  Bg4 {[%clk 0:02:45]} 13. h3 {[%clk 0:02:39]}  Bxf3 {[%clk 0:02:45]} 14. Bxf3 {[%clk 0:02:38]}  Nb4 {[%clk 0:02:42]} 15. Bg4 {[%clk 0:02:36]}  Nf6 {[%clk 0:02:41]} 16. Rd2 {[%clk 0:02:05]}  h5 {[%clk 0:02:36]} 17. Be2 {[%clk 0:01:58]}  Bh6 {[%clk 0:02:32]} 18. Be3 {[%clk 0:01:58]}  Bxe3 {[%clk 0:02:31]} 19. fxe3 {[%clk 0:01:59]}  Ke7 {[%clk 0:02:27]} 20. Rhd1 {[%clk 0:01:54]}  Rad8 {[%clk 0:02:26]} 21. Rxd8 {[%clk 0:01:39]}  Rxd8 {[%clk 0:02:27]} 22. Rxd8 {[%clk 0:01:38]}  Kxd8 {[%clk 0:02:28]} 23. g4 {[%clk 0:01:38]}  h4 {[%clk 0:02:25]} 24. Kd2 {[%clk 0:01:20]}  Na6 {[%clk 0:02:21]} 25. Bd3 {[%clk 0:01:15]}  Nc5 {[%clk 0:02:18]} 26. Bc2 {[%clk 0:01:09]}  Nh7 {[%clk 0:02:17]} 27. Nd1 {[%clk 0:00:57]}  Ng5 {[%clk 0:02:12]} 28. Nf2 {[%clk 0:00:57]}  Kc7 {[%clk 0:02:09]} 29. Kc3 {[%clk 0:00:53]}  Na6 {[%clk 0:02:05]} 30. Bb1 {[%clk 0:00:49]}  Kd6 {[%clk 0:02:01]} 31. Bc2 {[%clk 0:00:48]}  f6 {[%clk 0:02:00]} 32. Bb1 {[%clk 0:00:47]}  Nc5 {[%clk 0:01:43]} 33. Bc2 {[%clk 0:00:47]}  Nge6 {[%clk 0:01:37]} 34. Bb1 {[%clk 0:00:47]}  Na6 {[%clk 0:01:25]} 35. Bc2 {[%clk 0:00:43]}  Nb4 {[%clk 0:01:25]} 36. Bb1 {[%clk 0:00:40]}  Ng5 {[%clk 0:01:25]} 37. Kd2 {[%clk 0:00:37]}  Kc5 {[%clk 0:01:23]} 38. Kc3 {[%clk 0:00:37]}  Nf3 {[%clk 0:01:13]} 39. b3 {[%clk 0:00:27]}  Kd6 {[%clk 0:00:37]} 40. Bd3 {[%clk 0:00:24]}  Nxd3 {[%clk 0:00:32]} 41. Kxd3 {[%clk 0:00:23]}  Kc5 {[%clk 0:00:27]} 42. Ke2 {[%clk 0:00:21]}  Ng5 {[%clk 0:00:26]} 43. Nd3+ {[%clk 0:00:18]}  Kd6 {[%clk 0:00:24]} 44. Nf2 {[%clk 0:00:18]}  b5 {[%clk 0:00:20]} 45. Kd3 {[%clk 0:00:15]}  Kc5 {[%clk 0:00:19]} 46. Kc3 {[%clk 0:00:14]}  bxa4 {[%clk 0:00:17]} 47. bxa4 {[%clk 0:00:14]}  Nf7 {[%clk 0:00:15]} 48. Nd3+ {[%clk 0:00:15]}  Kb6 {[%clk 0:00:15]} 49. c5+ {[%clk 0:00:13]}  Kc7 {[%clk 0:00:13]} 50. Kc4 {[%clk 0:00:14]}  Ng5 {[%clk 0:00:12]} 51. Nf2 {[%clk 0:00:13]}  Kd7 {[%clk 0:00:13]} 52. Kd3 {[%clk 0:00:13]}  Ke6 {[%clk 0:00:13]} 53. Kc4 {[%clk 0:00:13]}  f5 {[%clk 0:00:10]} 54. exf5+ {[%clk 0:00:12]}  gxf5 {[%clk 0:00:11]} 55. Kd3 {[%clk 0:00:10]}  fxg4 {[%clk 0:00:05]} 56. Nxg4 {[%clk 0:00:10]}  Nxh3 {[%clk 0:00:05]} 57. Ke4 {[%clk 0:00:08]}  Ng5+ {[%clk 0:00:05]} 58. Kd3 {[%clk 0:00:08]}  Kd5 {[%clk 0:00:05]} 59. e4+ {[%clk 0:00:08]}  Kxc5 {[%clk 0:00:05]} 60. Nxe5 {[%clk 0:00:08]}  h3 {[%clk 0:00:04]} 61. Ng4 {[%clk 0:00:08]}  Kb4 {[%clk 0:00:04]} 62. Ke3 {[%clk 0:00:06]}  Kxa4 {[%clk 0:00:04]} 63. Kf4 {[%clk 0:00:07]}  Nf7 {[%clk 0:00:03]} 64. e5 {[%clk 0:00:06]}  Nxe5 {[%clk 0:00:03]} 65. Kxe5 {[%clk 0:00:06]}  Kb3 {[%clk 0:00:04]} 66. Kd6 {[%clk 0:00:07]}  a4 {[%clk 0:00:05]} 67. Kxc6 {[%clk 0:00:07]}  a3 {[%clk 0:00:05]} 68. Nh2 {[%clk 0:00:07]}  a2 {[%clk 0:00:06]} 69. Ng4 {[%clk 0:00:07]}  a1=Q {[%clk 0:00:07]} 70. Nh2 {[%clk 0:00:05]}  Qc3+ {[%clk 0:00:07]} 0-1


[Site "https://www.chess.com"]

[Event "Titled Tuesday Blitz June 27 Early 2023"]
[White "Tarasova, Viktoriya"]
[Black "Estrada Nieto, Julian"]
[WhiteFideId "4175840"]
[BlackFideId "5101018"]
[WhiteElo "2361"]
[BlackElo "2486"]
[Result "0-1"]
[Round "10"]
[TimeControl "180+2"]
[Date "2023.06.27"]
[WhiteClock "0:00:05"]
[BlackClock "0:00:07"]
[Board "102"]

1. d4 {[%clk 0:02:41]}  d5 {[%clk 0:02:58]} 2. c4 {[%clk 0:02:41]}  dxc4 {[%clk 0:02:59]} 3. e4 {[%clk 0:02:41]}  e5 {[%clk 0:02:58]} 4. Nf3 {[%clk 0:02:40]}  exd4 {[%clk 0:02:59]} 5. Bxc4 {[%clk 0:02:40]}  Nc6 {[%clk 0:03:00]} 6. O-O {[%clk 0:02:39]}  Be6 {[%clk 0:03:00]} 7. Bb5 {[%clk 0:02:38]}  Bc5 {[%clk 0:02:59]} 8. a3 {[%clk 0:02:37]}  Nf6 {[%clk 0:02:54]} 9. b4 {[%clk 0:02:34]}  Bb6 {[%clk 0:02:54]} 10. Re1 {[%clk 0:02:26]}  O-O {[%clk 0:02:52]} 11. Bb2 {[%clk 0:02:26]}  Bg4 {[%clk 0:02:42]} 12. Nbd2 {[%clk 0:02:24]}  Re8 {[%clk 0:02:39]} 13. h3 {[%clk 0:02:23]}  Bxf3 {[%clk 0:02:35]} 14. Qxf3 {[%clk 0:02:22]}  Ne5 {[%clk 0:02:34]} 15. Qg3 {[%clk 0:02:22]}  c6 {[%clk 0:02:33]} 16. Bf1 {[%clk 0:02:20]}  Bc7 {[%clk 0:02:09]} 17. f4 {[%clk 0:02:20]}  Nh5 {[%clk 0:02:00]} 18. Qb3 {[%clk 0:02:09]}  Nxf4 {[%clk 0:01:58]} 19. Nc4 {[%clk 0:02:03]}  Qg5 {[%clk 0:01:30]} 20. Kh1 {[%clk 0:02:01]}  Rad8 {[%clk 0:01:26]} 21. Rad1 {[%clk 0:01:59]}  d3 {[%clk 0:01:23]} 22. Nxe5 {[%clk 0:01:58]}  Bxe5 {[%clk 0:01:23]} 23. Bxe5 {[%clk 0:01:56]}  Rxe5 {[%clk 0:01:22]} 24. Qc3 {[%clk 0:01:50]}  Rde8 {[%clk 0:01:18]} 25. Qd4 {[%clk 0:01:46]}  h5 {[%clk 0:01:15]} 26. Qxa7 {[%clk 0:01:45]}  R5e7 {[%clk 0:01:06]} 27. Qf2 {[%clk 0:01:36]}  h4 {[%clk 0:01:06]} 28. Qf3 {[%clk 0:01:34]}  Qg3 {[%clk 0:00:58]} 29. Bxd3 {[%clk 0:01:24]}  Nxd3 {[%clk 0:00:47]} 30. Qxd3 {[%clk 0:01:19]}  Qxd3 {[%clk 0:00:44]} 31. Rxd3 {[%clk 0:01:19]}  Rxe4 {[%clk 0:00:43]} 32. Rxe4 {[%clk 0:01:14]}  Rxe4 {[%clk 0:00:44]} 33. Rd7 {[%clk 0:01:15]}  b5 {[%clk 0:00:42]} 34. Rc7 {[%clk 0:01:13]}  Re6 {[%clk 0:00:38]} 35. Kg1 {[%clk 0:01:13]}  g5 {[%clk 0:00:34]} 36. Kf2 {[%clk 0:01:13]}  Kg7 {[%clk 0:00:34]} 37. Kf3 {[%clk 0:01:13]}  Kg6 {[%clk 0:00:34]} 38. Rc8 {[%clk 0:01:12]}  f5 {[%clk 0:00:33]} 39. Rg8+ {[%clk 0:01:10]}  Kf6 {[%clk 0:00:33]} 40. Rf8+ {[%clk 0:01:10]}  Ke5 {[%clk 0:00:28]} 41. Rg8 {[%clk 0:01:10]}  Rd6 {[%clk 0:00:26]} 42. Ke3 {[%clk 0:00:54]}  f4+ {[%clk 0:00:20]} 43. Ke2 {[%clk 0:00:54]}  Kf5 {[%clk 0:00:17]} 44. Rf8+ {[%clk 0:00:52]}  Rf6 {[%clk 0:00:17]} 45. Rc8 {[%clk 0:00:51]}  Ke4 {[%clk 0:00:16]} 46. Rg8 {[%clk 0:00:47]}  Rf5 {[%clk 0:00:15]} 47. Rc8 {[%clk 0:00:46]}  Rf6 {[%clk 0:00:14]} 48. Rg8 {[%clk 0:00:45]}  Kf5 {[%clk 0:00:13]} 49. Rc8 {[%clk 0:00:42]}  Rd6 {[%clk 0:00:12]} 50. Rf8+ {[%clk 0:00:39]}  Ke6 {[%clk 0:00:12]} 51. Rg8 {[%clk 0:00:39]}  Kf6 {[%clk 0:00:12]} 52. Rf8+ {[%clk 0:00:39]}  Ke7 {[%clk 0:00:12]} 53. Rg8 {[%clk 0:00:37]}  Rd5 {[%clk 0:00:12]} 54. Rg7+ {[%clk 0:00:31]}  Kd6 {[%clk 0:00:12]} 55. Rg6+ {[%clk 0:00:31]}  Kc7 {[%clk 0:00:13]} 56. Rg7+ {[%clk 0:00:14]}  Kb6 {[%clk 0:00:12]} 57. Rg6 {[%clk 0:00:14]}  Re5+ {[%clk 0:00:11]} 58. Kf2 {[%clk 0:00:13]}  Rd5 {[%clk 0:00:10]} 59. Ke2 {[%clk 0:00:13]}  Kc7 {[%clk 0:00:10]} 60. Rg7+ {[%clk 0:00:13]}  Kd6 {[%clk 0:00:11]} 61. Rg6+ {[%clk 0:00:13]}  Kd7 {[%clk 0:00:10]} 62. Rg7+ {[%clk 0:00:12]}  Kd8 {[%clk 0:00:11]} 63. Rg6 {[%clk 0:00:12]}  c5 {[%clk 0:00:09]} 64. bxc5 {[%clk 0:00:12]}  Rxc5 {[%clk 0:00:10]} 65. Kf3 {[%clk 0:00:12]}  Kc7 {[%clk 0:00:09]} 66. Kg4 {[%clk 0:00:12]}  Rc3 {[%clk 0:00:08]} 67. Rxg5 {[%clk 0:00:11]}  Rxa3 {[%clk 0:00:06]} 68. Kxf4 {[%clk 0:00:08]}  b4 {[%clk 0:00:06]} 69. Rb5 {[%clk 0:00:08]}  b3 {[%clk 0:00:05]} 70. Kg4 {[%clk 0:00:09]}  Kc6 {[%clk 0:00:06]} 71. Rb8 {[%clk 0:00:08]}  Kc5 {[%clk 0:00:06]} 72. Kxh4 {[%clk 0:00:07]}  Ra4+ {[%clk 0:00:06]} 73. Kg3 {[%clk 0:00:07]}  Rb4 {[%clk 0:00:07]} 74. Rc8+ {[%clk 0:00:07]}  Kd4 {[%clk 0:00:07]} 75. Rc1 {[%clk 0:00:07]}  b2 {[%clk 0:00:08]} 76. Rf1 {[%clk 0:00:07]}  b1=Q {[%clk 0:00:07]} 77. Rxb1 {[%clk 0:00:08]}  Rxb1 {[%clk 0:00:07]} 78. Kg4 {[%clk 0:00:08]}  Ke5 {[%clk 0:00:08]} 79. Kg5 {[%clk 0:00:08]}  Rg1 {[%clk 0:00:07]} 80. g4 {[%clk 0:00:08]}  Ke6 {[%clk 0:00:07]} 81. Kg6 {[%clk 0:00:08]}  Rg3 {[%clk 0:00:07]} 82. g5 {[%clk 0:00:07]}  Rxh3 {[%clk 0:00:07]} 83. Kg7 {[%clk 0:00:07]}  Kf5 {[%clk 0:00:07]} 84. g6 {[%clk 0:00:05]}  Rg3 {[%clk 0:00:07]} 0-1


[Site "https://www.chess.com"]

[Event "Titled Tuesday Blitz June 27 Early 2023"]
[White "Kielinkei"]
[Black "Sovetbekova, Nurai"]
[BlackFideId "13801910"]
[WhiteElo "2469"]
[BlackElo "2353"]
[Result "0-1"]
[Round "10"]
[TimeControl "180+2"]
[Date "2023.06.27"]
[WhiteClock "0:00:00"]
[BlackClock "0:00:34"]
[Board "103"]

1. e4 {[%clk 0:03:00]}  c5 {[%clk 0:02:59]} 2. a3 {[%clk 0:03:00]}  Nc6 {[%clk 0:02:51]} 3. b4 {[%clk 0:03:00]}  d5 {[%clk 0:02:47]} 4. b5 {[%clk 0:02:54]}  Na5 {[%clk 0:02:39]} 5. exd5 {[%clk 0:02:51]}  Qxd5 {[%clk 0:02:38]} 6. Nc3 {[%clk 0:02:51]}  Qe5+ {[%clk 0:02:35]} 7. Be2 {[%clk 0:02:48]}  Bg4 {[%clk 0:02:30]} 8. h3 {[%clk 0:02:39]}  Bh5 {[%clk 0:02:27]} 9. f4 {[%clk 0:02:24]}  Bxe2 {[%clk 0:02:16]} 10. Ngxe2 {[%clk 0:02:24]}  Qc7 {[%clk 0:02:12]} 11. O-O {[%clk 0:02:21]}  e6 {[%clk 0:02:10]} 12. d3 {[%clk 0:02:16]}  Nf6 {[%clk 0:02:10]} 13. Be3 {[%clk 0:02:15]}  c4 {[%clk 0:02:09]} 14. Qe1 {[%clk 0:01:58]}  Be7 {[%clk 0:01:57]} 15. Qf2 {[%clk 0:01:45]}  O-O {[%clk 0:01:55]} 16. a4 {[%clk 0:01:37]}  cxd3 {[%clk 0:01:51]} 17. cxd3 {[%clk 0:01:37]}  Rfd8 {[%clk 0:01:49]} 18. Rfd1 {[%clk 0:01:32]}  Nb3 {[%clk 0:01:45]} 19. Rab1 {[%clk 0:01:29]}  Nc5 {[%clk 0:01:42]} 20. d4 {[%clk 0:01:23]}  Nce4 {[%clk 0:01:40]} 21. Nxe4 {[%clk 0:01:23]}  Nxe4 {[%clk 0:01:40]} 22. Qf3 {[%clk 0:01:22]}  Nc3 {[%clk 0:01:36]} 23. Rbc1 {[%clk 0:01:21]}  Nxe2+ {[%clk 0:01:35]} 24. Qxe2 {[%clk 0:01:22]}  Qd6 {[%clk 0:01:28]} 25. Qc4 {[%clk 0:01:19]}  Bf6 {[%clk 0:01:27]} 26. Qc5 {[%clk 0:01:05]}  Qd7 {[%clk 0:01:14]} 27. Qc7 {[%clk 0:00:46]}  Qd5 {[%clk 0:01:13]} 28. Qc5 {[%clk 0:00:37]}  Qe4 {[%clk 0:01:12]} 29. Rc3 {[%clk 0:00:35]}  h6 {[%clk 0:01:06]} 30. Qc4 {[%clk 0:00:33]}  Rd7 {[%clk 0:00:51]} 31. a5 {[%clk 0:00:32]}  Rad8 {[%clk 0:00:51]} 32. Rcd3 {[%clk 0:00:30]}  e5 {[%clk 0:00:38]} 33. fxe5 {[%clk 0:00:25]}  Bxe5 {[%clk 0:00:39]} 34. Kh1 {[%clk 0:00:22]}  Bb8 {[%clk 0:00:36]} 35. Qc5 {[%clk 0:00:18]}  Rd5 {[%clk 0:00:35]} 36. Qc2 {[%clk 0:00:10]}  Rh5 {[%clk 0:00:35]} 37. Kg1 {[%clk 0:00:06]}  Qd5 {[%clk 0:00:34]} 38. Qf2 {[%clk 0:00:00]}  Qd6 {[%clk 0:00:34]} 0-1


[Site "https://www.chess.com"]

[Event "Titled Tuesday Blitz June 27 Early 2023"]
[White "Adireddy Arjun"]
[Black "Tikhonov, Viacheslav"]
[WhiteFideId "25647709"]
[BlackFideId "44196407"]
[WhiteElo "2337"]
[BlackElo "2463"]
[Result "1/2-1/2"]
[Round "10"]
[TimeControl "180+2"]
[Date "2023.06.27"]
[WhiteClock "0:00:05"]
[BlackClock "0:00:06"]
[Board "104"]

1. e4 {[%clk 0:03:00]}  c6 {[%clk 0:03:00]} 2. d4 {[%clk 0:02:59]}  d5 {[%clk 0:03:00]} 3. Nc3 {[%clk 0:02:58]}  dxe4 {[%clk 0:03:00]} 4. Nxe4 {[%clk 0:02:58]}  Nf6 {[%clk 0:03:01]} 5. Nxf6+ {[%clk 0:02:59]}  exf6 {[%clk 0:03:02]} 6. c3 {[%clk 0:02:54]}  Bd6 {[%clk 0:03:01]} 7. Bd3 {[%clk 0:02:54]}  Na6 {[%clk 0:02:57]} 8. Bxa6 {[%clk 0:02:50]}  bxa6 {[%clk 0:02:56]} 9. Ne2 {[%clk 0:02:51]}  O-O {[%clk 0:02:53]} 10. Qd3 {[%clk 0:02:47]}  Re8 {[%clk 0:02:49]} 11. O-O {[%clk 0:02:45]}  c5 {[%clk 0:02:48]} 12. d5 {[%clk 0:02:18]}  Rb8 {[%clk 0:02:42]} 13. b3 {[%clk 0:02:15]}  a5 {[%clk 0:02:41]} 14. Be3 {[%clk 0:02:02]}  a4 {[%clk 0:02:38]} 15. bxa4 {[%clk 0:02:00]}  Qa5 {[%clk 0:02:37]} 16. c4 {[%clk 0:01:55]}  Qxa4 {[%clk 0:02:30]} 17. Nc3 {[%clk 0:01:54]}  Qa3 {[%clk 0:02:30]} 18. Bc1 {[%clk 0:01:51]}  Qa6 {[%clk 0:02:24]} 19. Be3 {[%clk 0:01:40]}  Bd7 {[%clk 0:02:16]} 20. a4 {[%clk 0:01:35]}  Rb4 {[%clk 0:02:14]} 21. Nb5 {[%clk 0:01:34]}  Be5 {[%clk 0:02:12]} 22. Bxc5 {[%clk 0:01:22]}  Bxa1 {[%clk 0:02:08]} 23. Bxb4 {[%clk 0:01:20]}  Qxa4 {[%clk 0:02:08]} 24. Bc5 {[%clk 0:01:13]}  Rc8 {[%clk 0:01:59]} 25. Be3 {[%clk 0:00:40]}  Rxc4 {[%clk 0:01:54]} 26. Nxa7 {[%clk 0:00:35]}  Bd4 {[%clk 0:01:47]} 27. Nc6 {[%clk 0:00:24]}  Bxe3 {[%clk 0:01:27]} 28. Ne7+ {[%clk 0:00:03]}  Kf8 {[%clk 0:01:25]} 29. Qxe3 {[%clk 0:00:03]}  Re4 {[%clk 0:01:22]} 30. Qc5 {[%clk 0:00:03]}  Qb4 {[%clk 0:00:52]} 31. Ng6+ {[%clk 0:00:02]}  Ke8 {[%clk 0:00:49]} 32. Qxb4 {[%clk 0:00:01]}  Rxb4 {[%clk 0:00:50]} 33. Re1+ {[%clk 0:00:01]}  Kd8 {[%clk 0:00:50]} 34. Nf8 {[%clk 0:00:01]}  Bf5 {[%clk 0:00:39]} 35. f3 {[%clk 0:00:02]}  Rd4 {[%clk 0:00:31]} 36. g4 {[%clk 0:00:01]}  Bg6 {[%clk 0:00:22]} 37. h4 {[%clk 0:00:01]}  Rxd5 {[%clk 0:00:20]} 38. Nxg6 {[%clk 0:00:01]}  fxg6 {[%clk 0:00:17]} 39. Kg2 {[%clk 0:00:02]}  Re5 {[%clk 0:00:14]} 40. Rf1 {[%clk 0:00:01]}  Ke7 {[%clk 0:00:14]} 41. Kg3 {[%clk 0:00:02]}  Ra5 {[%clk 0:00:14]} 42. Rc1 {[%clk 0:00:02]}  Rd5 {[%clk 0:00:14]} 43. Re1+ {[%clk 0:00:03]}  Re5 {[%clk 0:00:14]} 44. Rb1 {[%clk 0:00:03]}  Kf7 {[%clk 0:00:14]} 45. Rb7+ {[%clk 0:00:04]}  Re7 {[%clk 0:00:15]} 46. Rb6 {[%clk 0:00:05]}  h6 {[%clk 0:00:15]} 47. Rc6 {[%clk 0:00:05]}  Kg8 {[%clk 0:00:14]} 48. Rb6 {[%clk 0:00:06]}  Kh7 {[%clk 0:00:14]} 49. Rc6 {[%clk 0:00:06]}  Re5 {[%clk 0:00:14]} 50. Rc7 {[%clk 0:00:06]}  h5 {[%clk 0:00:14]} 51. Rb7 {[%clk 0:00:05]}  Rc5 {[%clk 0:00:13]} 52. Ra7 {[%clk 0:00:04]}  Kh6 {[%clk 0:00:13]} 53. Ra8 {[%clk 0:00:03]}  Kh7 {[%clk 0:00:13]} 54. Ra7 {[%clk 0:00:04]}  hxg4 {[%clk 0:00:13]} 55. fxg4 {[%clk 0:00:03]}  Rc3+ {[%clk 0:00:13]} 56. Kf4 {[%clk 0:00:03]}  Rc4+ {[%clk 0:00:12]} 57. Kg3 {[%clk 0:00:03]}  Rb4 {[%clk 0:00:09]} 58. Ra6 {[%clk 0:00:02]}  f5 {[%clk 0:00:08]} 59. g5 {[%clk 0:00:01]}  Rg4+ {[%clk 0:00:08]} 60. Kh3 {[%clk 0:00:02]}  Rg1 {[%clk 0:00:08]} 61. Ra4 {[%clk 0:00:02]}  Kg8 {[%clk 0:00:06]} 62. Ra8+ {[%clk 0:00:02]}  Kf7 {[%clk 0:00:07]} 63. Ra7+ {[%clk 0:00:03]}  Kf8 {[%clk 0:00:07]} 64. Ra8+ {[%clk 0:00:03]}  Kf7 {[%clk 0:00:08]} 65. Ra7+ {[%clk 0:00:04]}  Kg8 {[%clk 0:00:08]} 66. Ra8+ {[%clk 0:00:05]}  Kh7 {[%clk 0:00:09]} 67. Ra4 {[%clk 0:00:06]}  Re1 {[%clk 0:00:09]} 68. Kg3 {[%clk 0:00:05]}  Re3+ {[%clk 0:00:09]} 69. Kf4 {[%clk 0:00:04]}  Rh3 {[%clk 0:00:09]} 70. Ke5 {[%clk 0:00:04]}  Rh1 {[%clk 0:00:06]} 71. Rb4 {[%clk 0:00:04]}  Re1+ {[%clk 0:00:03]} 72. Kf4 {[%clk 0:00:04]}  Rg1 {[%clk 0:00:04]} 73. Kf3 {[%clk 0:00:04]}  Rh1 {[%clk 0:00:03]} 74. Kg3 {[%clk 0:00:04]}  Rd1 {[%clk 0:00:04]} 75. Kf4 {[%clk 0:00:03]}  Rd3 {[%clk 0:00:04]} 76. Ke5 {[%clk 0:00:03]}  Rh3 {[%clk 0:00:03]} 77. Ra4 {[%clk 0:00:04]}  Kg8 {[%clk 0:00:03]} 78. Ra8+ {[%clk 0:00:04]}  Kf7 {[%clk 0:00:03]} 79. Ra7+ {[%clk 0:00:04]}  Kf8 {[%clk 0:00:04]} 80. Ra8+ {[%clk 0:00:04]}  Kf7 {[%clk 0:00:04]} 81. Ra7+ {[%clk 0:00:04]}  Kg8 {[%clk 0:00:05]} 82. Ra8+ {[%clk 0:00:05]}  Kh7 {[%clk 0:00:06]} 83. Ra4 {[%clk 0:00:05]} 1/2-1/2


[Site "https://www.chess.com"]

[Event "Titled Tuesday Blitz June 27 Early 2023"]
[White "FuenfgegenWilly"]
[Black "KorolDimitriy75"]
[WhiteElo "2397"]
[BlackElo "2425"]
[Result "0-1"]
[Round "10"]
[TimeControl "180+2"]
[Date "2023.06.27"]
[WhiteClock "0:00:52"]
[BlackClock "0:00:02"]
[Board "107"]

1. d4 {[%clk 0:02:55]}  Nf6 {[%clk 0:02:59]} 2. c4 {[%clk 0:02:55]}  c5 {[%clk 0:02:59]} 3. d5 {[%clk 0:02:55]}  b5 {[%clk 0:02:59]} 4. Qc2 {[%clk 0:02:54]}  bxc4 {[%clk 0:02:59]} 5. e4 {[%clk 0:02:52]}  d6 {[%clk 0:02:59]} 6. Nf3 {[%clk 0:02:51]}  Nbd7 {[%clk 0:02:59]} 7. Bxc4 {[%clk 0:02:47]}  g6 {[%clk 0:02:59]} 8. h3 {[%clk 0:02:46]}  Bg7 {[%clk 0:02:59]} 9. O-O {[%clk 0:02:47]}  O-O {[%clk 0:03:00]} 10. Nc3 {[%clk 0:02:45]}  Nb6 {[%clk 0:03:00]} 11. Nd2 {[%clk 0:02:42]}  Nxc4 {[%clk 0:02:51]} 12. Nxc4 {[%clk 0:02:43]}  Ba6 {[%clk 0:02:51]} 13. Qa4 {[%clk 0:02:44]}  Bxc4 {[%clk 0:02:30]} 14. Qxc4 {[%clk 0:02:45]}  Rb8 {[%clk 0:02:25]} 15. Re1 {[%clk 0:02:37]}  Nd7 {[%clk 0:02:12]} 16. Qa6 {[%clk 0:02:34]}  Qc7 {[%clk 0:01:55]} 17. Bg5 {[%clk 0:02:22]}  Rxb2 {[%clk 0:01:04]} 18. Nb5 {[%clk 0:02:22]}  Qb6 {[%clk 0:00:35]} 19. Qxb6 {[%clk 0:02:15]}  axb6 {[%clk 0:00:34]} 20. Rab1 {[%clk 0:02:15]}  Rxb1 {[%clk 0:00:29]} 21. Rxb1 {[%clk 0:02:16]}  Bf6 {[%clk 0:00:27]} 22. Bc1 {[%clk 0:01:51]}  Ra8 {[%clk 0:00:25]} 23. a3 {[%clk 0:01:51]}  Ra4 {[%clk 0:00:16]} 24. f3 {[%clk 0:01:51]}  Ne5 {[%clk 0:00:13]} 25. Nc7 {[%clk 0:01:50]}  Nc4 {[%clk 0:00:11]} 26. Kf2 {[%clk 0:01:44]}  h5 {[%clk 0:00:10]} 27. Kg3 {[%clk 0:01:43]}  Nxa3 {[%clk 0:00:09]} 28. Bxa3 {[%clk 0:01:42]}  Rxa3 {[%clk 0:00:09]} 29. Rxb6 {[%clk 0:01:43]}  c4 {[%clk 0:00:07]} 30. Rc6 {[%clk 0:01:42]}  c3 {[%clk 0:00:07]} 31. Nb5 {[%clk 0:01:40]}  Rb3 {[%clk 0:00:08]} 32. Nc7 {[%clk 0:01:37]}  h4+ {[%clk 0:00:08]} 33. Kf4 {[%clk 0:01:20]}  Rb2 {[%clk 0:00:04]} 34. Ne8 {[%clk 0:01:20]}  Be5+ {[%clk 0:00:04]} 35. Kg4 {[%clk 0:01:19]}  Rxg2+ {[%clk 0:00:04]} 36. Kxh4 {[%clk 0:01:19]}  Kh7 {[%clk 0:00:03]} 37. f4 {[%clk 0:01:16]}  Bxf4 {[%clk 0:00:02]} 38. Nf6+ {[%clk 0:00:52]}  exf6 {[%clk 0:00:02]} 0-1


[Site "https://www.chess.com"]

[Event "Titled Tuesday Blitz June 27 Early 2023"]
[White "Grossboss19"]
[Black "Tuleyeva-Aketayeva, Dana"]
[BlackFideId "13701932"]
[WhiteElo "2404"]
[BlackElo "2235"]
[Result "1-0"]
[Round "10"]
[TimeControl "180+2"]
[Date "2023.06.27"]
[WhiteClock "0:00:38"]
[BlackClock "0:00:00"]
[Board "108"]

1. d4 {[%clk 0:02:54]}  Nf6 {[%clk 0:02:44]} 2. c4 {[%clk 0:02:51]}  e6 {[%clk 0:02:44]} 3. e3 {[%clk 0:02:46]}  Bb4+ {[%clk 0:02:42]} 4. Bd2 {[%clk 0:02:46]}  Qe7 {[%clk 0:02:42]} 5. a3 {[%clk 0:02:45]}  Bxd2+ {[%clk 0:02:42]} 6. Nxd2 {[%clk 0:02:46]}  O-O {[%clk 0:02:42]} 7. Bd3 {[%clk 0:02:46]}  b6 {[%clk 0:02:42]} 8. Ngf3 {[%clk 0:02:46]}  Bb7 {[%clk 0:02:42]} 9. O-O {[%clk 0:02:46]}  d6 {[%clk 0:02:43]} 10. b4 {[%clk 0:02:42]}  Nbd7 {[%clk 0:02:43]} 11. Nb3 {[%clk 0:02:35]}  e5 {[%clk 0:02:43]} 12. Nfd2 {[%clk 0:02:35]}  e4 {[%clk 0:02:10]} 13. Be2 {[%clk 0:02:34]}  Qe6 {[%clk 0:02:01]} 14. a4 {[%clk 0:02:30]}  Qf5 {[%clk 0:01:51]} 15. a5 {[%clk 0:02:28]}  a6 {[%clk 0:01:49]} 16. f3 {[%clk 0:02:20]}  exf3 {[%clk 0:01:34]} 17. Bxf3 {[%clk 0:02:17]}  Bxf3 {[%clk 0:01:32]} 18. Qxf3 {[%clk 0:02:18]}  Qxf3 {[%clk 0:01:25]} 19. gxf3 {[%clk 0:02:16]}  d5 {[%clk 0:01:19]} 20. c5 {[%clk 0:02:11]}  b5 {[%clk 0:01:15]} 21. c6 {[%clk 0:02:06]}  Nb8 {[%clk 0:01:14]} 22. Rac1 {[%clk 0:02:05]}  Re8 {[%clk 0:01:09]} 23. Kf2 {[%clk 0:02:04]}  Re6 {[%clk 0:01:09]} 24. Rc5 {[%clk 0:01:55]}  Nxc6 {[%clk 0:01:06]} 25. e4 {[%clk 0:01:45]}  Nxb4 {[%clk 0:01:05]} 26. e5 {[%clk 0:01:37]}  Nd3+ {[%clk 0:01:05]} 27. Kg2 {[%clk 0:01:34]}  Nxc5 {[%clk 0:01:00]} 28. Nxc5 {[%clk 0:01:35]}  Rc6 {[%clk 0:00:57]} 29. exf6 {[%clk 0:01:34]}  gxf6 {[%clk 0:00:47]} 30. Re1 {[%clk 0:01:33]}  Kf8 {[%clk 0:00:38]} 31. Nb1 {[%clk 0:01:24]}  b4 {[%clk 0:00:29]} 32. Re3 {[%clk 0:01:20]}  Kg7 {[%clk 0:00:27]} 33. Rb3 {[%clk 0:01:19]}  Re8 {[%clk 0:00:25]} 34. Rxb4 {[%clk 0:01:15]}  Re2+ {[%clk 0:00:24]} 35. Kg3 {[%clk 0:01:14]}  f5 {[%clk 0:00:23]} 36. Nc3 {[%clk 0:01:10]}  Rg6+ {[%clk 0:00:21]} 37. Kf4 {[%clk 0:01:10]}  Rxh2 {[%clk 0:00:20]} 38. Nxd5 {[%clk 0:01:10]}  Rh4+ {[%clk 0:00:20]} 39. Ke3 {[%clk 0:01:09]}  Rg3 {[%clk 0:00:19]} 40. Nd3 {[%clk 0:01:04]}  Rhh3 {[%clk 0:00:15]} 41. Ne1 {[%clk 0:01:00]}  Rg1 {[%clk 0:00:15]} 42. Kf2 {[%clk 0:00:59]}  Rhh1 {[%clk 0:00:14]} 43. Rb1 {[%clk 0:00:59]}  Rf1+ {[%clk 0:00:13]} 44. Ke2 {[%clk 0:00:59]}  h5 {[%clk 0:00:13]} 45. Ne3 {[%clk 0:00:59]}  Rfg1 {[%clk 0:00:13]} 46. Kf2 {[%clk 0:00:55]}  f4 {[%clk 0:00:12]} 47. N3g2 {[%clk 0:00:54]}  Rf1+ {[%clk 0:00:12]} 48. Ke2 {[%clk 0:00:54]}  h4 {[%clk 0:00:11]} 49. Nxf4 {[%clk 0:00:54]}  Rfg1 {[%clk 0:00:09]} 50. Kf2 {[%clk 0:00:50]}  Rf1+ {[%clk 0:00:08]} 51. Ke2 {[%clk 0:00:50]}  Rfg1 {[%clk 0:00:08]} 52. Nfd3 {[%clk 0:00:40]}  h3 {[%clk 0:00:04]} 53. Nf2 {[%clk 0:00:41]}  Rh2 {[%clk 0:00:04]} 54. Ke3 {[%clk 0:00:40]}  Rhg2 {[%clk 0:00:00]} 55. Nxh3 {[%clk 0:00:38]} 1-0


[Site "https://www.chess.com"]